lending/lending_fUSD_20241120
["ID","MTS","AMOUNT","RATE_DAILY","PERIOD"]
[342794416,1732140848622,-500.0,0.00059452,120]
[342794417,1732140848632,-725.78,0.00059452,120]
[342794418,1732140848641,-5411.3,0.00059452,120]
[342794419,1732140848651,-996.23,0.00059452,120]
[342794420,1732140848660,-4393.1,0.00059452,120]
[342794421,1732140848670,-1967.61,0.00059452,120]
[342794422,1732140848679,-535.35,0.00059452,120]
[342794423,1732140848689,-243.17580402,0.00059452,120]
[342794424,1732140848700,-1127.77,0.00059452,120]
[342794425,1732140848709,-580.25,0.00059452,120]
[342794426,1732140848719,-559.06,0.00059452,120]
[342794427,1732140848728,-570.31,0.00059452,120]
[342794428,1732140848737,-8863.78,0.00059452,120]
[342794429,1732140848747,-604.62,0.00059452,120]
[342794430,1732140848756,-2040.5,0.00059452,120]
[342794431,1732140848765,-1500.0,0.00059452,120]
[342794432,1732140848775,-7043.87,0.00059452,120]
[342794433,1732140848786,-2305.42,0.00059452,120]
[342794434,1732140848795,-762.69,0.00059452,120]
[342794435,1732140848805,-713.08,0.00059452,120]
[342794436,1732140848814,-1604.28,0.00059452,120]
[342794437,1732140848823,-500.0,0.00059452,120]
[342794438,1732140848833,-1101.03,0.00059452,120]
[342794439,1732140848842,-505.73197152,0.00059452,120]
[342794440,1732140848851,-1320.75,0.00059452,120]
[342794441,1732140848860,-500.0,0.00059452,120]
[342794442,1732140848870,-5594.76,0.00059452,120]
[342794443,1732140848879,-500.0,0.00059452,120]
[342794444,1732140848888,-1100.57,0.00059452,120]
[342794445,1732140848898,-918.38,0.00059452,120]
[342794446,1732140848908,-3670.68,0.00059452,120]
[342794447,1732140848917,-561.2,0.00059452,120]
[342794448,1732140848926,-1644.0,0.00059598,30]
[342794449,1732140848936,-20717.0294188,0.000597,120]
[342794450,1732140848945,-3000.0,0.000597,90]
[342794451,1732140848954,-492.18396767,0.00059726,120]
[342794452,1732140848964,-789.82,0.00059726,120]
[342794453,1732140848974,-907.52,0.00059726,120]
[342794454,1732140848983,-676.32,0.00059726,120]
[342794455,1732140848993,-1495.04,0.00059726,120]
[342794456,1732140849003,-690.77,0.00059726,120]
[342794457,1732140849013,-500.0,0.00059726,120]
[342794458,1732140849022,-802.91,0.00059726,120]
[342794459,1732140849033,-1078.99,0.00059726,120]
[342794460,1732140849043,-1196.86,0.00059726,120]
[342794461,1732140849052,-1553.66,0.00059726,120]
[342794462,1732140849062,-554.58211063,0.00059726,120]
[342794463,1732140849071,-500.0,0.00059726,120]
[342794464,1732140849081,-1468.02,0.00059726,120]
[342794465,1732140849090,-500.0,0.00059726,120]
[342794466,1732140849099,-1204.33,0.00059726,120]
[342794467,1732140849109,-689.54,0.00059726,120]
[342794468,1732140849119,-500.0,0.00059726,120]
[342794469,1732140849129,-500.0,0.00059726,120]
[342794470,1732140849139,-500.0,0.00059726,120]
[342794471,1732140849149,-3362.7,0.00059726,120]
[342794472,1732140849160,-2907.27,0.00059726,120]
[342794473,1732140849169,-1034.08,0.00059726,120]
[342794474,1732140849181,-500.0,0.00059726,120]
[342794475,1732140849193,-691.51,0.00059726,120]
[342794476,1732140849202,-577.45,0.00059726,120]
[342794477,1732140849211,-1141.42,0.00059726,120]
[342794478,1732140849223,-1067.52,0.00059726,120]
[342794479,1732140849233,-1047.06,0.00059726,120]
[342794480,1732140849243,-1588.94,0.00059726,120]
[342794481,1732140849253,-826.46,0.00059726,120]
[342794482,1732140849263,-883.47,0.00059726,120]
[342794483,1732140849272,-1125.72,0.00059726,120]
[342794484,1732140849284,-1116.01,0.00059726,120]
[342794485,1732140849294,-1198.91,0.00059726,120]
[342794486,1732140849304,-1410.51,0.00059726,120]
[342794487,1732140849314,-508.72,0.00059726,120]
[342794488,1732140849323,-500.0,0.00059726,120]
[342794489,1732140849333,-501.02,0.00059726,120]
[342794490,1732140849343,-854.5,0.00059726,120]
[342794491,1732140849354,-500.0,0.00059726,120]
[342794492,1732140849363,-923.86,0.00059726,120]
[342794493,1732140849373,-500.0,0.00059726,120]
[342794494,1732140849382,-500.0,0.00059726,60]
[342794495,1732140849391,-1843.46,0.00059726,120]
[342794496,1732140849403,-810.6,0.00059726,120]
[342794497,1732140849413,-909.22,0.00059726,120]
[342794498,1732140849422,-533.52,0.00059726,120]
[342794499,1732140849431,-2415.23,0.00059726,120]
[342794500,1732140849442,-972.8,0.00059726,120]
[342794501,1732140849451,-1624.46,0.00059726,120]
[342794502,1732140849461,-530.46,0.00059726,120]
[342794503,1732140849471,-730.89,0.00059726,120]
[342794504,1732140849480,-615.39,0.00059726,120]
[342794505,1732140849491,-500.0,0.00059726,120]
[342794506,1732140849501,-515.66,0.00059726,120]
[342794507,1732140849511,-783.6,0.00059726,120]
[342794508,1732140849522,-713.08,0.00059726,120]
[342794509,1732140849532,-524.36,0.00059726,120]
[342794510,1732140849542,-1852.69,0.00059726,120]
[342794511,1732140849552,-296.51484619,0.00059726,120]
[342794512,1732140849561,-729.05,0.00059726,120]
[342794513,1732140849571,-2435.5,0.00059726,120]
[342794514,1732140849581,-521.8,0.00059726,120]
[342794515,1732140849591,-642.48,0.00059726,120]
[342794516,1732140849601,-849.85,0.00059726,120]
[342794517,1732140849610,-627.45,0.00059726,120]
[342794518,1732140849619,-858.26,0.00059726,120]
[342794519,1732140849629,-503.51,0.00059726,120]
[342794520,1732140849639,-742.62,0.00059726,120]
[342794521,1732140849649,-2800.08,0.00059726,120]
[342794522,1732140849659,-563.45,0.00059726,120]
[342794523,1732140849668,-1104.08,0.00059726,120]
[342794524,1732140849678,-1222.85,0.00059726,120]
[342794525,1732140849688,-1021.61,0.00059726,120]
[342794526,1732140849697,-578.33,0.00059726,120]
[342794527,1732140849707,-1661.17,0.00059726,120]
[342794528,1732140849716,-800.14,0.00059726,120]
[342794529,1732140849726,-500.0,0.00059726,120]
[342794530,1732140849736,-1090.19,0.00059726,120]
[342794531,1732140849746,-1054.3,0.00059726,120]
[342794532,1732140849756,-1209.25,0.00059726,120]
[342794533,1732140849765,-500.0,0.00059726,120]
[342794534,1732140849774,-1267.34,0.00059726,120]
[342794535,1732140849793,-2432.38,0.00059726,7]
[342794536,1732140849802,-1560.72,0.00059726,120]
[342794537,1732140849812,-1127.18,0.00059726,120]
[342794538,1732140849822,-1047.78,0.00059726,120]
[342794539,1732140849831,-655.09,0.00059726,120]
[342794540,1732140849840,-500.0,0.00059726,120]
[342794541,1732140849850,-411.7228226,0.00059726,120]
[342794542,1732140849859,-1376.36,0.00059726,120]
[342794543,1732140849868,-758.47,0.00059726,120]
[342794544,1732140849877,-1218.68,0.00059726,120]
[342794545,1732140849887,-1031.21,0.00059726,120]
[342794546,1732140849896,-746.97,0.00059726,120]
[342794547,1732140849905,-500.0,0.00059726,120]
[342794548,1732140849915,-1530.02,0.00059726,120]
[342794549,1732140849924,-859.85,0.00059726,120]
[342794550,1732140849934,-1956.13,0.00059726,120]
[342794551,1732140849943,-626.84,0.00059726,120]
[342794552,1732140849952,-925.63,0.00059726,120]
[342794553,1732140849961,-1089.2,0.00059726,120]
[342794554,1732140849971,-500.0,0.00059726,120]
[342794555,1732140849981,-746.22,0.00059726,120]
[342794556,1732140849990,-1753.04,0.00059726,120]
[342794557,1732140850000,-1615.28,0.00059726,120]
[342794558,1732140850010,-750.0,0.00059726,120]
[342794559,1732140850020,-2808.16,0.00059726,120]
[342794560,1732140850033,-628.55,0.00059726,120]
[342794561,1732140850042,-2720.22,0.00059726,120]
[342794562,1732140850051,-1040.43,0.00059726,120]
[342794563,1732140850061,-679.38,0.00059726,120]
[342794564,1732140850071,-579.85,0.00059726,120]
[342794565,1732140850080,-1233.54,0.00059726,120]
[342794566,1732140850089,-560.33,0.00059726,120]
[342794567,1732140850099,-1140.69,0.00059726,120]
[342794568,1732140850108,-1241.7,0.00059726,120]
[342794569,1732140850119,-673.6,0.00059726,120]
[342794570,1732140850128,-1595.79,0.00059726,120]
[342794571,1732140850139,-690.2,0.00059726,120]
[342794572,1732140850148,-614.35,0.00059726,120]
[342794573,1732140850158,-1420.27,0.00059726,120]
[342794574,1732140850167,-500.0,0.00059726,120]
[342794575,1732140850178,-1747.91,0.00059726,120]
[342794576,1732140850190,-1026.85,0.00059726,120]
[342794577,1732140850200,-1208.59,0.00059726,120]
[342794578,1732140850209,-813.38,0.00059726,120]
[342794579,1732140850219,-509.94,0.00059726,120]
[342794580,1732140850230,-547.23,0.00059726,120]
[342794581,1732140850239,-1929.2,0.00059726,120]
[342794582,1732140850395,-983.72,0.00059726,120]
[342794583,1732140850405,-1133.87,0.00059726,120]
[342794584,1732140850416,-2243.95,0.00059726,120]
[342794585,1732140850425,-500.0,0.00059726,120]
[342794586,1732140850435,-837.29,0.00059726,120]
[342794587,1732140850445,-601.65,0.00059726,120]
[342794588,1732140850456,-500.0,0.00059726,120]
[342794589,1732140850466,-485.65556813,0.00059726,120]
[342794590,1732140850476,-1244.02,0.00059726,120]
[342794591,1732140850485,-500.0,0.00059726,120]
[342794592,1732140850495,-581.48,0.00059726,120]
[342794593,1732140850505,-912.77,0.00059726,120]
[342794594,1732140850514,-822.59,0.00059726,120]
[342794595,1732140850524,-1640.54,0.00059726,120]
[342794596,1732140850536,-957.41,0.00059726,120]
[342794597,1732140850546,-3305.34,0.00059726,120]
[342794598,1732140850555,-546.92,0.00059726,120]
[342794599,1732140850565,-500.0,0.00059726,120]
[342794600,1732140850576,-1590.28,0.00059726,120]
[342794601,1732140850586,-4503.54,0.00059726,120]
[342794602,1732140850596,-2459.56,0.00059726,120]
[342794603,1732140850606,-5054.97,0.00059726,120]
[342794604,1732140850615,-328.41931337,0.00059726,120]
[342794605,1732140850625,-1237.62,0.00059726,120]
[342794606,1732140850635,-500.0,0.00059726,120]
[342794607,1732140850644,-1805.81,0.00059726,120]
[342794608,1732140850654,-1705.69,0.00059726,120]
[342794609,1732140850663,-730.02,0.00059726,120]
[342794610,1732140850673,-556.28,0.00059726,120]
[342794611,1732140850683,-1293.03,0.00059726,120]
[342794612,1732140850692,-735.83,0.00059726,120]
[342794613,1732140850702,-875.45,0.00059726,120]
[342794614,1732140850712,-2355.16,0.00059726,120]
[342794615,1732140850721,-529.9,0.00059726,120]
[342794616,1732140850730,-1626.59,0.00059726,120]
[342794617,1732140850740,-1065.14,0.00059726,120]
[342794618,1732140850750,-899.71,0.00059726,120]
[342794619,1732140850759,-1031.07,0.00059726,120]
[342794620,1732140850769,-2139.66,0.00059726,120]
[342794621,1732140850778,-1746.7,0.00059726,120]
[342794622,1732140850790,-1000.0,0.00059726,30]
[342794623,1732140850799,-525.57,0.00059726,120]
[342794624,1732140850809,-1007.82,0.00059726,120]
[342794625,1732140850819,-500.0,0.00059726,120]
[342794626,1732140850828,-525.94,0.00059726,120]
[342794627,1732140850838,-800.11,0.00059726,120]
[342794628,1732140850847,-3332.16,0.00059726,120]
[342794629,1732140850856,-2450.69,0.00059726,120]
[342794630,1732140850866,-1123.27,0.00059726,120]
[342794631,1732140850875,-1393.96,0.00059726,120]
[342794632,1732140850884,-967.57,0.00059726,120]
[342794633,1732140850894,-500.0,0.00059726,120]
[342794634,1732140850903,-1357.65,0.00059726,120]
[342794635,1732140850912,-500.0,0.00059726,120]
[342794636,1732140850922,-1642.87,0.00059726,120]
[342794637,1732140850932,-1588.79,0.00059726,90]
[342794638,1732140850941,-500.0,0.00059726,120]
[342794639,1732140850951,-1853.26,0.00059726,120]
[342794640,1732140850961,-1717.17,0.00059726,120]
[342794641,1732140850972,-700.0,0.00059726,120]
[342794642,1732140850982,-2546.22,0.00059726,120]
[342794643,1732140850993,-2834.37,0.00059726,120]
[342794644,1732140851003,-1334.03,0.00059726,120]
[342794645,1732140851013,-2885.23,0.00059726,120]
[342794646,1732140851023,-4453.81,0.00059726,120]
[342794647,1732140851036,-2241.05,0.00059726,120]
[342794648,1732140851046,-2217.98,0.00059726,120]
[342794649,1732140851055,-1402.45,0.00059726,60]
[342794650,1732140851065,-800.61,0.00059726,120]
[342794651,1732140851075,-500.0,0.00059726,120]
[342794652,1732140851085,-932.27,0.00059726,120]
[342794653,1732140851095,-1004.07,0.00059726,120]
[342794654,1732140851104,-2000.63,0.00059726,120]
[342794655,1732140851115,-703.55,0.00059726,120]
[342794656,1732140851125,-2241.76,0.00059726,120]
[342794657,1732140851135,-1132.68,0.00059726,120]
[342794658,1732140851145,-596.11,0.00059726,120]
[342794659,1732140851155,-794.52,0.00059726,120]
[342794660,1732140851164,-833.99,0.00059726,120]
[342794661,1732140851175,-2777.12,0.00059726,120]
[342794662,1732140851188,-1558.24,0.00059726,120]
[342794663,1732140851198,-1309.21,0.00059726,120]
[342794664,1732140851207,-500.0,0.00059726,120]
[342794665,1732140851217,-500.08,0.00059726,120]
[342794666,1732140851228,-2539.87,0.00059726,120]
[342794667,1732140851238,-492.68343334,0.00059726,120]
[342794668,1732140851248,-831.36,0.00059726,120]
[342794669,1732140851258,-1743.89,0.00059726,120]
[342794670,1732140851268,-500.0,0.00059726,120]
[342794671,1732140851279,-1365.28,0.00059726,120]
[342794672,1732140851292,-1229.75,0.00059726,120]
[342794673,1732140851303,-1290.22,0.00059726,120]
[342794674,1732140851312,-507.82,0.00059726,120]
[342794675,1732140851321,-3045.72,0.00059726,120]
[342794676,1732140851331,-916.6,0.00059726,120]
[342794677,1732140851340,-500.0,0.00059726,120]
[342794678,1732140851350,-610.75,0.00059726,120]
[342794679,1732140851360,-500.0,0.00059726,120]
[342794680,1732140851370,-502.86,0.00059726,120]
[342794681,1732140851380,-504.52,0.00059726,120]
[342794682,1732140851390,-1278.95,0.00059726,120]
[342794683,1732140851399,-702.18,0.00059726,120]
[342794684,1732140851409,-500.0,0.00059726,120]
[342794685,1732140851419,-3583.6,0.00059726,120]
[342794686,1732140851429,-1685.95,0.00059726,120]
[342794687,1732140851439,-5689.68,0.00059726,120]
[342794688,1732140851448,-1343.23,0.00059726,120]
[342794689,1732140851458,-553.27,0.00059726,120]
[342794690,1732140851467,-1250.26,0.00059726,120]
[342794691,1732140851477,-982.33,0.00059726,120]
[342794692,1732140851487,-500.0,0.00059726,120]
[342794693,1732140851496,-667.62,0.00059726,120]
[342794694,1732140851506,-500.0,0.00059726,120]
[342794695,1732140851517,-609.95,0.00059726,120]
[342794696,1732140851527,-808.05,0.00059726,120]
[342794697,1732140851540,-522.08,0.00059726,120]
[342794698,1732140851551,-1111.01,0.00059726,120]
[342794699,1732140851561,-671.78,0.00059726,120]
[342794700,1732140851571,-1704.12,0.00059726,120]
[342794701,1732140851581,-2102.13,0.00059726,120]
[342794702,1732140851591,-500.0,0.00059726,120]
[342794703,1732140851601,-907.83,0.00059726,120]
[342794704,1732140851610,-1034.91,0.00059726,120]
[342794705,1732140851620,-5007.0,0.00059726,120]
[342794706,1732140851630,-2296.76,0.00059726,20]
[342794707,1732140851640,-675.74,0.00059726,120]
[342794708,1732140851650,-500.0,0.00059726,120]
[342794709,1732140851660,-629.19421094,0.00059726,120]
[342794710,1732140851669,-798.21,0.00059726,120]
[342794711,1732140851679,-647.62,0.00059726,120]
[342794712,1732140851689,-2489.82,0.00059726,120]
[342794713,1732140851699,-296.00059194,0.00059726,120]
[342794714,1732140851709,-2045.61,0.00059726,120]
[342794715,1732140851718,-1208.94,0.00059726,120]
[342794716,1732140851728,-721.64,0.00059726,120]
[342794717,1732140851737,-972.27,0.00059726,120]
[342794718,1732140851747,-1591.78,0.00059726,120]
[342794719,1732140851756,-1887.72,0.00059726,120]
[342794720,1732140851766,-208.42035926,0.00059726,120]
[342794721,1732140851776,-850.0,0.00059726,120]
[342794722,1732140851787,-852.01,0.00059726,120]
[342794723,1732140851797,-872.84,0.00059726,120]
[342794724,1732140851807,-846.36,0.00059726,120]
[342794725,1732140851817,-865.82,0.00059726,120]
[342794726,1732140851827,-1191.88,0.00059726,120]
[342794727,1732140851836,-5749.44,0.00059726,120]
[342794728,1732140851846,-500.0,0.00059726,120]
[342794729,1732140851856,-500.0,0.00059726,120]
[342794730,1732140851866,-706.66,0.00059726,120]
[342794731,1732140851875,-1792.7,0.00059726,120]
[342794732,1732140851885,-669.11,0.00059726,120]
[342794733,1732140851894,-571.98,0.00059726,120]
[342794734,1732140851904,-688.41,0.00059726,120]
[342794735,1732140851914,-710.75,0.00059726,120]
[342794736,1732140851923,-2203.93,0.00059726,120]
[342794737,1732140851933,-600.76,0.00059726,120]
[342794738,1732140851943,-1092.67,0.00059726,120]
[342794739,1732140851953,-723.74,0.00059726,120]
[342794740,1732140851963,-962.75,0.00059726,120]
[342794741,1732140851973,-988.55,0.00059726,120]
[342794742,1732140851983,-690.54,0.00059726,120]
[342794743,1732140851993,-2304.78,0.00059726,120]
[342794744,1732140852003,-843.9,0.00059726,120]
[342794745,1732140852013,-1647.87,0.00059726,120]
[342794746,1732140852023,-850.55,0.00059726,120]
[342794747,1732140852033,-809.67,0.00059726,120]
[342794748,1732140852042,-683.97,0.00059726,120]
[342794749,1732140852051,-834.1,0.00059726,120]
[342794750,1732140852060,-914.77,0.00059726,120]
[342794751,1732140852070,-1141.14,0.00059726,120]
[342794752,1732140852079,-500.0,0.00059726,120]
[342794753,1732140852089,-624.59,0.00059726,120]
[342794754,1732140852099,-1109.8,0.00059726,120]
[342794755,1732140852108,-1752.52,0.00059726,120]
[342794756,1732140852118,-1096.46,0.00059726,120]
[342794757,1732140852128,-950.07,0.00059726,120]
[342794758,1732140852138,-1422.3,0.00059726,120]
[342794759,1732140852147,-2142.92,0.00059726,120]
[342794760,1732140852157,-829.0,0.00059726,120]
[342794761,1732140852166,-575.3,0.00059726,120]
[342794762,1732140852177,-500.0,0.00059726,120]
[342794763,1732140852190,-737.82,0.00059726,120]
[342794764,1732140852199,-1778.99,0.00059726,120]
[342794765,1732140852209,-666.21,0.00059726,120]
[342794766,1732140852218,-1715.56,0.00059726,120]
[342794767,1732140852230,-1062.65,0.00059726,120]
[342794768,1732140852240,-500.0,0.00059726,120]
[342794769,1732140852249,-2346.15,0.00059726,120]
[342794770,1732140852261,-949.47,0.00059726,120]
[342794771,1732140852272,-1351.22,0.00059726,120]
[342794772,1732140852282,-888.32,0.00059726,120]
[342794773,1732140852292,-880.81,0.00059726,120]
[342794774,1732140852302,-597.52,0.00059726,120]
[342794775,1732140852311,-642.33,0.00059726,120]
[342794776,1732140852320,-6141.54,0.00059726,120]
[342794777,1732140852330,-1511.19,0.00059726,120]
[342794778,1732140852339,-1086.04,0.00059726,120]
[342794779,1732140852348,-668.34,0.00059726,120]
[342794780,1732140852358,-1492.04,0.00059726,120]
[342794781,1732140852368,-926.38,0.00059726,120]
[342794782,1732140852378,-1351.32,0.00059726,120]
[342794783,1732140852388,-695.0,0.00059726,120]
[342794784,1732140852398,-5287.99,0.00059726,120]
[342794785,1732140852408,-845.23,0.00059726,120]
[342794786,1732140852418,-1482.2,0.00059726,120]
[342794787,1732140852428,-1260.12,0.00059726,120]
[342794788,1732140852438,-1283.29,0.00059726,120]
[342794789,1732140852448,-1393.35,0.00059726,120]
[342794790,1732140852458,-500.0,0.00059726,120]
[342794791,1732140852468,-500.0,0.00059726,120]
[342794792,1732140852477,-2642.2,0.00059726,120]
[342794793,1732140852487,-1536.4,0.00059726,120]
[342794794,1732140852496,-3168.55,0.00059726,120]
[342794795,1732140852506,-500.0,0.00059726,120]
[342794796,1732140852516,-827.35,0.00059726,120]
[342794797,1732140852526,-500.0,0.00059726,120]
[342794798,1732140852537,-1702.89,0.00059726,120]
[342794799,1732140852546,-641.78,0.00059726,120]
[342794800,1732140852555,-1344.44,0.00059726,120]
[342794801,1732140852565,-1090.73,0.00059726,120]
[342794802,1732140852575,-52850.67,0.00059726,120]
[342794803,1732140852584,-1753.45,0.00059726,120]
[342794804,1732140852594,-1064.88,0.00059726,120]
[342794805,1732140852603,-1006.78,0.00059726,120]
[342794806,1732140852613,-500.0,0.00059726,120]
[342794807,1732140852622,-622.97,0.00059726,120]
[342794808,1732140852996,-3042.17,0.00059726,120]
[342794809,1732140853005,-1736.39,0.00059726,120]
[342794810,1732140853014,-2339.16,0.00059726,120]
[342794811,1732140853025,-700.57,0.00059726,120]
[342794812,1732140853036,-585.35,0.00059726,120]
[342794813,1732140853049,-2627.11,0.00059726,120]
[342794814,1732140853058,-1522.74,0.00059726,120]
[342794815,1732140853067,-1766.0,0.00059726,120]
[342794816,1732140853076,-693.99,0.00059726,120]
[342794817,1732140853086,-5335.95,0.00059726,120]
[342794818,1732140853095,-973.18,0.00059726,120]
[342794819,1732140853105,-500.0,0.00059726,120]
[342794820,1732140853115,-778.26,0.00059726,120]
[342794821,1732140853124,-523.5,0.00059726,120]
[342794822,1732140853133,-561.95,0.00059726,120]
[342794823,1732140853143,-868.31,0.00059726,120]
[342794824,1732140853152,-1122.37,0.00059726,120]
[342794825,1732140853161,-400.36,0.00059726,7]
[342794826,1732140853170,-620.69,0.00059726,120]
[342794827,1732140853182,-1223.49,0.00059726,120]
[342794828,1732140853194,-500.0,0.00059726,120]
[342794829,1732140853206,-1516.54,0.00059726,120]
[342794830,1732140853215,-4704.32,0.00059726,120]
[342794831,1732140853225,-1041.7,0.00059726,120]
[342794832,1732140853234,-500.0,0.00059726,120]
[342794833,1732140853243,-1384.57,0.00059726,120]
[342794834,1732140853254,-1309.89,0.00059726,120]
[342794835,1732140853264,-525.76,0.00059726,120]
[342794836,1732140853274,-500.0,0.00059726,120]
[342794837,1732140853284,-2012.7,0.00059726,120]
[342794838,1732140853293,-2257.06,0.00059726,120]
[342794839,1732140853303,-500.0,0.00059726,120]
[342794840,1732140853313,-656.82,0.00059726,120]
[342794841,1732140853322,-1047.88,0.00059726,120]
[342794842,1732140853332,-1177.9,0.00059726,120]
[342794843,1732140853342,-1603.42,0.00059726,120]
[342794844,1732140853351,-1567.54,0.00059726,120]
[342794845,1732140853361,-834.44,0.00059726,120]
[342794846,1732140853371,-500.0,0.00059726,120]
[342794847,1732140853381,-2004.44,0.00059726,120]
[342794848,1732140853391,-500.0,0.00059726,120]
[342794849,1732140853400,-1050.71,0.00059726,120]
[342794850,1732140853410,-1803.54,0.00059726,120]
[342794851,1732140853421,-650.66,0.00059726,120]
[342794852,1732140853430,-516.91,0.00059726,120]
[342794853,1732140853440,-500.0,0.00059726,120]
[342794854,1732140853451,-500.0,0.00059726,120]
[342794855,1732140853461,-950.3,0.00059726,120]
[342794856,1732140853471,-4162.19,0.00059726,120]
[342794857,1732140853481,-729.88,0.00059726,120]
[342794858,1732140853491,-1325.24,0.00059726,120]
[342794859,1732140853500,-1437.64,0.00059726,120]
[342794860,1732140853510,-951.19,0.00059726,120]
[342794861,1732140853519,-739.2,0.00059726,120]
[342794862,1732140853529,-711.16,0.00059726,120]
[342794863,1732140853541,-35063.23,0.00059726,120]
[342794864,1732140853551,-758.38,0.00059726,120]
[342794865,1732140853560,-500.0,0.00059726,120]
[342794866,1732140853570,-1066.88,0.00059726,120]
[342794867,1732140853580,-500.0,0.00059726,120]
[342794868,1732140853590,-604.09,0.00059726,120]
[342794869,1732140853600,-1309.97,0.00059726,120]
[342794870,1732140853611,-516.9,0.00059726,120]
[342794871,1732140853621,-1271.19,0.00059726,120]
[342794872,1732140853631,-1776.53,0.00059726,120]
[342794873,1732140853640,-1055.78,0.00059726,120]
[342794874,1732140853651,-2027.31,0.00059726,120]
[342794875,1732140853660,-2957.46,0.00059726,120]
[342794876,1732140853670,-3450.26,0.00059726,120]
[342794877,1732140853680,-1015.77,0.00059726,120]
[342794878,1732140853690,-565.96,0.00059726,120]
[342794879,1732140853700,-5653.29,0.00059726,120]
[342794880,1732140853710,-2531.55,0.00059726,120]
[342794881,1732140853719,-1396.17,0.00059726,120]
[342794882,1732140853729,-699.76,0.00059726,120]
[342794883,1732140853738,-578.1,0.00059726,120]
[342794884,1732140853747,-1833.67,0.00059726,120]
[342794885,1732140853757,-1045.04,0.00059726,120]
[342794886,1732140853767,-458.62549706,0.00059726,120]
[342794887,1732140853776,-671.36,0.00059726,120]
[342794888,1732140853788,-1250.43,0.00059726,120]
[342794889,1732140853797,-618.56,0.00059726,120]
[342794890,1732140853807,-1529.97,0.00059726,120]
[342794891,1732140853816,-1979.2,0.00059726,120]
[342794892,1732140853826,-7124.81,0.00059726,120]
[342794893,1732140853835,-916.63,0.00059726,120]
[342794894,1732140853845,-1114.64,0.00059726,120]
[342794895,1732140853855,-500.0,0.00059726,120]
[342794896,1732140853865,-1049.5,0.00059726,120]
[342794897,1732140853875,-1449.91,0.00059726,120]
[342794898,1732140853885,-3951.61,0.00059726,120]
[342794899,1732140853894,-2536.25,0.00059726,120]
[342794900,1732140853904,-2472.73,0.00059726,120]
[342794901,1732140853913,-500.0,0.00059726,120]
[342794902,1732140853923,-786.55,0.00059726,120]
[342794903,1732140853933,-4870.15,0.00059726,120]
[342794904,1732140853943,-883.86,0.00059726,120]
[342794905,1732140853953,-4533.42,0.00059726,120]
[342794906,1732140853962,-851.5,0.00059726,120]
[342794907,1732140853971,-636.47,0.00059726,120]
[342794908,1732140853981,-1189.95746126,0.00059726,30]
[342794909,1732140853991,-1816.21,0.00059726,120]
[342794910,1732140854000,-616.92,0.00059726,120]
[342794911,1732140854010,-1014.23,0.00059726,120]
[342794912,1732140854019,-6811.17,0.00059726,120]
[342794913,1732140854029,-1332.89,0.00059726,120]
[342794914,1732140854041,-753.95,0.00059726,120]
[342794915,1732140854050,-10722.81,0.00059726,120]